[Event "Live Chess"]
[Site "Chess.com"]
[Date "2024.06.01"]
[Round "-"]
[White "Zhevzh1k7"]
[Black "grillage"]
[Result "0-1"]
[WhiteElo "1072"]
[BlackElo "1889"]
[TimeControl "300"]
[EndTime "10:10:49 PDT"]
[Termination "grillage won by checkmate"]

1. e4 {[%clk 0:04:57.7]} 1... d5 {[%clk 0:04:58.9]} 2. d4 {[%clk 0:04:55.5]}
2... e6 {[%clk 0:04:55.5]} 3. exd5 {[%clk 0:04:53.7]} 3... exd5 {[%clk
0:04:53.9]} 4. Nc3 {[%clk 0:04:52.5]} 4... c6 {[%clk 0:04:48.1]} 5. Nf3 {[%clk
0:04:50.8]} 5... Bd6 {[%clk 0:04:44.4]} 6. Bd3 {[%clk 0:04:45.1]} 6... Ne7
{[%clk 0:04:43.4]} 7. O-O {[%clk 0:04:43.5]} 7... Bf5 {[%clk 0:04:39.5]} 8. Bxf5
{[%clk 0:04:41.6]} 8... Nxf5 {[%clk 0:04:38.6]} 9. Re1+ {[%clk 0:04:41.5]} 9...
Ne7 {[%clk 0:04:24.1]} 10. Bg5 {[%clk 0:04:38.7]} 10... O-O {[%clk 0:04:14.7]}
11. Qd3 {[%clk 0:04:23.6]} 11... Qc7 {[%clk 0:04:10.4]} 12. Re3 {[%clk
0:04:12.6]} 12... Ng6 {[%clk 0:04:07.7]} 13. Rae1 {[%clk 0:04:06.8]} 13... Bf4
{[%clk 0:03:57.3]} 14. Bxf4 {[%clk 0:04:02.8]} 14... Qxf4 {[%clk 0:03:55.7]} 15.
Ne5 {[%clk 0:03:57.7]} 15... Nxe5 {[%clk 0:03:48.2]} 16. Rxe5 {[%clk 0:03:51.5]}
16... Nd7 {[%clk 0:03:34]} 17. Re7 {[%clk 0:03:48.1]} 17... Rad8 {[%clk
0:03:32.1]} 18. Ne2 {[%clk 0:03:39.4]} 18... Qf6 {[%clk 0:03:29.8]} 19. Re3
{[%clk 0:03:33.9]} 19... Rfe8 {[%clk 0:03:25]} 20. Ng3 {[%clk 0:03:30.2]} 20...
Rxe3 {[%clk 0:03:23.4]} 21. Rxe3 {[%clk 0:03:30.1]} 21... Nf8 {[%clk 0:03:13.9]}
22. Rf3 {[%clk 0:03:25.9]} 22... Qg6 {[%clk 0:02:58.8]} 23. Nf5 {[%clk
0:03:15.6]} 23... Re8 {[%clk 0:02:53.4]} 24. h3 {[%clk 0:03:00.6]} 24... Ne6
{[%clk 0:02:47.1]} 25. Nd6 {[%clk 0:02:51.4]} 25... Re7 {[%clk 0:02:40.5]} 26.
Nf5 {[%clk 0:02:39]} 26... Rd7 {[%clk 0:02:38.7]} 27. Ng3 {[%clk 0:02:28.7]}
27... Qxd3 {[%clk 0:02:36.8]} 28. Rxd3 {[%clk 0:02:25.5]} 28... Re7 {[%clk
0:02:26]} 29. Kf1 {[%clk 0:02:18.5]} 29... g6 {[%clk 0:02:15.4]} 30. Re3 {[%clk
0:02:11]} 30... Kf8 {[%clk 0:02:11.5]} 31. c3 {[%clk 0:02:09.9]} 31... f5 {[%clk
0:02:03.6]} 32. Re2 {[%clk 0:02:00.3]} 32... Kf7 {[%clk 0:02:02.6]} 33. Ke1
{[%clk 0:01:58.2]} 33... Nf4 {[%clk 0:01:58.2]} 34. Rxe7+ {[%clk 0:01:56.2]}
34... Kxe7 {[%clk 0:01:57.3]} 35. Kf1 {[%clk 0:01:42.7]} 35... Nd3 {[%clk
0:01:55.7]} 36. b3 {[%clk 0:01:40.2]} 36... Nc1 {[%clk 0:01:53.9]} 37. a4 {[%clk
0:01:38.6]} 37... Nxb3 {[%clk 0:01:53]} 38. Ne2 {[%clk 0:01:36.8]} 38... Nd2+
{[%clk 0:01:48.9]} 39. Ke1 {[%clk 0:01:35]} 39... Nc4 {[%clk 0:01:46.1]} 40. f4
{[%clk 0:01:33.5]} 40... a5 {[%clk 0:01:37.7]} 41. Kf2 {[%clk 0:01:31.9]} 41...
b5 {[%clk 0:01:35.4]} 42. axb5 {[%clk 0:01:30.7]} 42... cxb5 {[%clk 0:01:34.9]}
43. Nc1 {[%clk 0:01:26]} 43... a4 {[%clk 0:01:30.2]} 44. Na2 {[%clk 0:01:21.7]}
44... Nd6 {[%clk 0:01:25.3]} 45. Kf3 {[%clk 0:01:18]} 45... Ne4 {[%clk
0:01:23.5]} 46. g4 {[%clk 0:01:14.6]} 46... a3 {[%clk 0:01:14.7]} 47. gxf5
{[%clk 0:00:55.8]} 47... gxf5 {[%clk 0:01:13.1]} 48. h4 {[%clk 0:00:54.8]} 48...
h5 {[%clk 0:01:10.8]} 49. Ke3 {[%clk 0:00:53.7]} 49... Kd6 {[%clk 0:01:07.8]}
50. Kd3 {[%clk 0:00:52.8]} 50... Ng3 {[%clk 0:00:55]} 51. Nb4 {[%clk 0:00:47.7]}
51... Ne4 {[%clk 0:00:48.9]} 52. Na2 {[%clk 0:00:46]} 52... Kc6 {[%clk
0:00:45.8]} 53. Ke3 {[%clk 0:00:44.7]} 53... Kb6 {[%clk 0:00:44.5]} 54. Kd3
{[%clk 0:00:43.8]} 54... Ka5 {[%clk 0:00:43.4]} 55. Kc2 {[%clk 0:00:38.4]} 55...
Ka4 {[%clk 0:00:41.7]} 56. Kd3 {[%clk 0:00:34.7]} 56... Ng3 {[%clk 0:00:38.3]}
57. Kc2 {[%clk 0:00:32.7]} 57... Ne2 {[%clk 0:00:36.2]} 58. Nb4 {[%clk
0:00:30.7]} 58... Nxf4 {[%clk 0:00:33.9]} 59. Kb1 {[%clk 0:00:25.3]} 59... Kb3
{[%clk 0:00:32.7]} 60. Ka1 {[%clk 0:00:19.1]} 60... Kxc3 {[%clk 0:00:30.7]} 61.
Ka2 {[%clk 0:00:16.9]} 61... Kxb4 {[%clk 0:00:28.4]} 62. Ka1 {[%clk 0:00:15.7]}
62... Kc4 {[%clk 0:00:26.8]} 63. Ka2 {[%clk 0:00:15.6]} 63... Kxd4 {[%clk
0:00:25.6]} 64. Kxa3 {[%clk 0:00:15.5]} 64... Ng2 {[%clk 0:00:23.9]} 65. Kb4
{[%clk 0:00:15.4]} 65... Nxh4 {[%clk 0:00:23.4]} 66. Kxb5 {[%clk 0:00:15.3]}
66... f4 {[%clk 0:00:22.8]} 67. Kc6 {[%clk 0:00:15.2]} 67... f3 {[%clk
0:00:22.4]} 68. Kd6 {[%clk 0:00:14.9]} 68... f2 {[%clk 0:00:22]} 69. Kd7 {[%clk
0:00:14.8]} 69... f1=Q {[%clk 0:00:20.8]} 70. Kd6 {[%clk 0:00:14.7]} 70... Qf6+
{[%clk 0:00:18.6]} 71. Kd7 {[%clk 0:00:14.6]} 71... Kc5 {[%clk 0:00:16.7]} 72.
Kc7 {[%clk 0:00:13.4]} 72... Qe7+ {[%clk 0:00:15.4]} 73. Kc8 {[%clk 0:00:12.6]}
73... Kb6 {[%clk 0:00:13.1]} 74. Kb8 {[%clk 0:00:12.5]} 74... Qe8# {[%clk
0:00:12.2]} 0-1

[Event "Live Chess"]
[Site "Chess.com"]
[Date "2024.06.01"]
[Round "-"]
[White "Ksenia_2013"]
[Black "Berdgross"]
[Result "1-0"]
[WhiteElo "786"]
[BlackElo "594"]
[TimeControl "300"]
[EndTime "10:11:00 PDT"]
[Termination "Ksenia_2013 won by checkmate"]

1. e4 {[%clk 0:04:58.2]} 1... e5 {[%clk 0:04:58]} 2. Nf3 {[%clk 0:04:55.4]} 2...
d6 {[%clk 0:04:56.8]} 3. Bc4 {[%clk 0:04:53.9]} 3... Nf6 {[%clk 0:04:54.3]} 4.
Ng5 {[%clk 0:04:52.5]} 4... Be6 {[%clk 0:04:43.1]} 5. Nxe6 {[%clk 0:04:45.9]}
5... fxe6 {[%clk 0:04:41.5]} 6. Bxe6 {[%clk 0:04:43.9]} 6... Nxe4 {[%clk
0:04:38.4]} 7. Qf3 {[%clk 0:04:38.9]} 7... Ng5 {[%clk 0:04:24.8]} 8. Qf5 {[%clk
0:04:34.4]} 8... Nc6 {[%clk 0:04:15.8]} 9. d3 {[%clk 0:04:32.6]} 9... Nd4 {[%clk
0:04:14.7]} 10. Bf7+ {[%clk 0:04:15.4]} 10... Nxf7 {[%clk 0:04:05.9]} 11. Qe4
{[%clk 0:04:08.5]} 11... Nxc2+ {[%clk 0:04:02.9]} 12. Kf1 {[%clk 0:04:03.1]}
12... Nxa1 {[%clk 0:04:00]} 13. Qxb7 {[%clk 0:04:00.5]} 13... Nc2 {[%clk
0:03:57.3]} 14. Qc6+ {[%clk 0:03:58.4]} 14... Ke7 {[%clk 0:03:54.1]} 15. Qxc2
{[%clk 0:03:54.7]} 15... Rb8 {[%clk 0:03:40.8]} 16. Qe2 {[%clk 0:03:46.8]} 16...
Kd7 {[%clk 0:03:38]} 17. Qg4+ {[%clk 0:03:43.9]} 17... Ke7 {[%clk 0:03:32.3]}
18. Bg5+ {[%clk 0:03:41.8]} 18... Ke8 {[%clk 0:03:26.6]} 19. Bxd8 {[%clk
0:03:39.3]} 19... Nxd8 {[%clk 0:03:25.6]} 20. Qh5+ {[%clk 0:03:32.8]} 20... g6
{[%clk 0:03:24]} 21. Qg5 {[%clk 0:03:24.3]} 21... Rxb2 {[%clk 0:03:21.1]} 22.
Nc3 {[%clk 0:03:22.2]} 22... Rc2 {[%clk 0:03:14.6]} 23. Nd5 {[%clk 0:03:18.4]}
23... Rc1+ {[%clk 0:03:12.8]} 24. Ke2 {[%clk 0:03:16.7]} 24... Rxh1 {[%clk
0:03:11.7]} 25. Nf6+ {[%clk 0:03:15.1]} 25... Kf7 {[%clk 0:03:06.8]} 26. Nd7
{[%clk 0:02:48]} 26... Rxh2 {[%clk 0:03:02.2]} 27. Qg3 {[%clk 0:02:44.1]} 27...
Rh5 {[%clk 0:02:51.5]} 28. Qf3+ {[%clk 0:02:41.5]} 28... Ke7 {[%clk 0:02:48.6]}
29. Qf6+ {[%clk 0:02:35.1]} 29... Kxd7 {[%clk 0:02:42.7]} 30. Qxh8 {[%clk
0:02:33.7]} 30... Be7 {[%clk 0:02:36.6]} 31. Qg7 {[%clk 0:02:24.5]} 31... Ne6
{[%clk 0:02:33.9]} 32. Qg8 {[%clk 0:02:19.3]} 32... Nf4+ {[%clk 0:02:29.8]} 33.
Kf3 {[%clk 0:02:16.6]} 33... Nxd3 {[%clk 0:02:25.1]} 34. Qd5 {[%clk 0:02:10.5]}
34... Rf5+ {[%clk 0:02:14.6]} 35. Ke4 {[%clk 0:02:05]} 35... Nxf2+ {[%clk
0:02:08.9]} 36. Ke3 {[%clk 0:01:59.3]} 36... Bg5+ {[%clk 0:02:02]} 37. Ke2
{[%clk 0:01:56.9]} 37... Ng4 {[%clk 0:01:49.6]} 38. Qb5+ {[%clk 0:01:52.7]}
38... Ke6 {[%clk 0:01:47.9]} 39. Qe8+ {[%clk 0:01:49.4]} 39... Kf6 {[%clk
0:01:43.6]} 40. Qd8+ {[%clk 0:01:46.9]} 40... Ke6 {[%clk 0:01:42.3]} 41. Qe8+
{[%clk 0:01:45]} 41... Kd5 {[%clk 0:01:40.8]} 42. Qb5+ {[%clk 0:01:42.9]} 42...
Ke4 {[%clk 0:01:38.6]} 43. Qd3+ {[%clk 0:01:40.4]} 43... Kf4 {[%clk 0:01:34]}
44. Qf3# {[%clk 0:01:38.9]} 1-0

[Event "Live Chess"]
[Site "Chess.com"]
[Date "2024.06.01"]
[Round "-"]
[White "halfberg"]
[Black "sshamil"]
[Result "1-0"]
[WhiteElo "1905"]
[BlackElo "1704"]
[TimeControl "300"]
[EndTime "10:11:04 PDT"]
[Termination "halfberg won by resignation"]

1. e4 {[%clk 0:04:55.7]} 1... Nc6 {[%clk 0:04:57.1]} 2. d4 {[%clk 0:04:54]} 2...
e6 {[%clk 0:04:54.2]} 3. Nf3 {[%clk 0:04:51.2]} 3... Be7 {[%clk 0:04:53.2]} 4.
c4 {[%clk 0:04:48.2]} 4... Nf6 {[%clk 0:04:52]} 5. Nc3 {[%clk 0:04:46.3]} 5...
d5 {[%clk 0:04:47.9]} 6. cxd5 {[%clk 0:04:43.5]} 6... exd5 {[%clk 0:04:46.4]} 7.
e5 {[%clk 0:04:42.4]} 7... Nd7 {[%clk 0:04:45.1]} 8. Bd3 {[%clk 0:04:38]} 8...
b6 {[%clk 0:04:43.4]} 9. O-O {[%clk 0:04:36.1]} 9... a5 {[%clk 0:04:42]} 10.
Nxd5 {[%clk 0:04:32.7]} 10... Bb7 {[%clk 0:04:38.7]} 11. Nxe7 {[%clk 0:04:30.5]}
11... Qxe7 {[%clk 0:04:38]} 12. Re1 {[%clk 0:04:22.8]} 12... O-O-O {[%clk
0:04:35.5]} 13. Bg5 {[%clk 0:04:14.4]} 13... Qb4 {[%clk 0:04:22.4]} 14. Bxd8
{[%clk 0:04:07.7]} 14... Rxd8 {[%clk 0:04:21]} 15. Be4 {[%clk 0:03:51.3]} 15...
f6 {[%clk 0:04:15.5]} 16. e6 {[%clk 0:03:47.6]} 16... Ndb8 {[%clk 0:04:11.6]}
17. d5 {[%clk 0:03:44.5]} 17... Ne5 {[%clk 0:04:08.1]} 18. Nxe5 {[%clk
0:03:42.7]} 18... fxe5 {[%clk 0:04:07.2]} 19. Rc1 {[%clk 0:03:35.7]} 19... c6
{[%clk 0:04:05.1]} 20. Qg4 {[%clk 0:03:25.8]} 20... g6 {[%clk 0:04:02.7]} 21.
dxc6 {[%clk 0:03:14]} 21... Bxc6 {[%clk 0:03:56.5]} 22. Bxc6 {[%clk 0:03:09.7]}
22... Nxc6 {[%clk 0:03:55.7]} 23. e7+ {[%clk 0:03:05.8]} 1-0

[Event "Live Chess"]
[Site "Chess.com"]
[Date "2024.06.01"]
[Round "-"]
[White "DarranAS"]
[Black "powerchs"]
[Result "0-1"]
[WhiteElo "1529"]
[BlackElo "1256"]
[TimeControl "300"]
[EndTime "10:11:09 PDT"]
[Termination "powerchs won by resignation"]

1. d4 {[%clk 0:04:56.9]} 1... Nf6 {[%clk 0:04:57.9]} 2. c4 {[%clk 0:04:53.8]}
2... g6 {[%clk 0:04:56.3]} 3. Nc3 {[%clk 0:04:50.6]} 3... Bg7 {[%clk 0:04:55.2]}
4. Nf3 {[%clk 0:04:48.5]} 4... O-O {[%clk 0:04:52.2]} 5. e3 {[%clk 0:04:47.6]}
5... d6 {[%clk 0:04:46.7]} 6. Bd3 {[%clk 0:04:43.3]} 6... Nbd7 {[%clk
0:04:43.3]} 7. Qc2 {[%clk 0:04:40.7]} 7... Re8 {[%clk 0:04:41.2]} 8. O-O {[%clk
0:04:38.5]} 8... e5 {[%clk 0:04:39.9]} 9. dxe5 {[%clk 0:04:24.1]} 9... dxe5
{[%clk 0:04:38.3]} 10. Ne4 {[%clk 0:04:15.7]} 10... Nxe4 {[%clk 0:04:18.2]} 11.
Bxe4 {[%clk 0:04:13.1]} 11... f5 {[%clk 0:04:17]} 12. Bd5+ {[%clk 0:04:10.5]}
12... Kh8 {[%clk 0:04:14.4]} 13. Rd1 {[%clk 0:04:05.5]} 13... c6 {[%clk
0:04:12.6]} 14. Bf7 {[%clk 0:03:34.8]} 14... Rf8 {[%clk 0:04:09.2]} 15. Bxg6
{[%clk 0:03:24.2]} 15... hxg6 {[%clk 0:04:07.7]} 16. Bd2 {[%clk 0:03:20.8]}
16... Qf6 {[%clk 0:04:06]} 17. Bc3 {[%clk 0:03:19]} 17... Qe6 {[%clk 0:03:45.7]}
18. b3 {[%clk 0:03:15.4]} 18... Nc5 {[%clk 0:03:35]} 19. Rd2 {[%clk 0:03:05.7]}
19... Ne4 {[%clk 0:03:33]} 20. Rd3 {[%clk 0:03:01]} 20... Nxc3 {[%clk
0:03:27.8]} 21. Rxc3 {[%clk 0:02:59.6]} 21... e4 {[%clk 0:03:26.1]} 22. Ng5
{[%clk 0:02:51.3]} 22... Qf6 {[%clk 0:03:22]} 0-1

[Event "Live Chess"]
[Site "Chess.com"]
[Date "2024.06.01"]
[Round "-"]
[White "E2E4colchester"]
[Black "hapehansen"]
[Result "0-1"]
[WhiteElo "1487"]
[BlackElo "2243"]
[TimeControl "300"]
[EndTime "10:11:13 PDT"]
[Termination "hapehansen won by checkmate"]

1. d4 {[%clk 0:04:56.6]} 1... Nf6 {[%clk 0:04:58.3]} 2. c4 {[%clk 0:04:55.1]}
2... c5 {[%clk 0:04:57.4]} 3. dxc5 {[%clk 0:04:52.9]} 3... b5 {[%clk 0:04:56.9]}
4. cxb5 {[%clk 0:04:50.4]} 4... e6 {[%clk 0:04:51.8]} 5. e3 {[%clk 0:04:49]}
5... Bxc5 {[%clk 0:04:49.8]} 6. Nc3 {[%clk 0:04:46.6]} 6... Bb7 {[%clk
0:04:48.2]} 7. Nf3 {[%clk 0:04:43.7]} 7... O-O {[%clk 0:04:46.4]} 8. Be2 {[%clk
0:04:39.9]} 8... a6 {[%clk 0:04:45.5]} 9. bxa6 {[%clk 0:04:36.8]} 9... Nxa6
{[%clk 0:04:44.5]} 10. O-O {[%clk 0:04:34.4]} 10... Qe7 {[%clk 0:04:38.6]} 11.
Bxa6 {[%clk 0:04:32.8]} 11... Bxa6 {[%clk 0:04:35.9]} 12. Re1 {[%clk 0:04:31.8]}
12... d5 {[%clk 0:04:31.3]} 13. Na4 {[%clk 0:04:26.4]} 13... Ba7 {[%clk
0:04:26.4]} 14. b3 {[%clk 0:04:25]} 14... Ne4 {[%clk 0:04:20.4]} 15. Bb2 {[%clk
0:04:13]} 15... Rac8 {[%clk 0:04:18.1]} 16. Rc1 {[%clk 0:04:07.3]} 16... Rxc1
{[%clk 0:04:14.2]} 17. Qxc1 {[%clk 0:04:01.5]} 17... Rc8 {[%clk 0:04:12.6]} 18.
Qb1 {[%clk 0:03:56.1]} 18... Bb5 {[%clk 0:03:57.3]} 19. Bd4 {[%clk 0:03:49.3]}
19... Bxd4 {[%clk 0:03:51.3]} 20. Nxd4 {[%clk 0:03:48]} 20... Bxa4 {[%clk
0:03:50.2]} 21. bxa4 {[%clk 0:03:46.9]} 21... h6 {[%clk 0:03:37.9]} 22. Rc1
{[%clk 0:03:43.3]} 22... Ra8 {[%clk 0:03:32]} 23. Nc6 {[%clk 0:03:27.7]} 23...
Qa3 {[%clk 0:03:27]} 24. Qb3 {[%clk 0:03:15]} 24... Qxc1+ {[%clk 0:03:22.9]} 25.
Qd1 {[%clk 0:03:10.8]} 25... Qxd1# {[%clk 0:03:20.9]} 0-1

[Event "Live Chess"]
[Site "Chess.com"]
[Date "2024.06.01"]
[Round "-"]
[White "KGreenGator"]
[Black "updatedopenings2024"]
[Result "0-1"]
[WhiteElo "1768"]
[BlackElo "1805"]
[TimeControl "300"]
[EndTime "10:11:23 PDT"]
[Termination "updatedopenings2024 won by resignation"]

1. c4 {[%clk 0:04:57]} 1... c6 {[%clk 0:04:59.9]} 2. d4 {[%clk 0:04:55.1]} 2...
d5 {[%clk 0:04:59.8]} 3. Nc3 {[%clk 0:04:54.1]} 3... Nf6 {[%clk 0:04:58.9]} 4.
e3 {[%clk 0:04:53.5]} 4... Bg4 {[%clk 0:04:56.2]} 5. Nf3 {[%clk 0:04:52.7]} 5...
e6 {[%clk 0:04:55.3]} 6. Be2 {[%clk 0:04:51.4]} 6... Be7 {[%clk 0:04:54.3]} 7.
cxd5 {[%clk 0:04:47.9]} 7... cxd5 {[%clk 0:04:52.3]} 8. h3 {[%clk 0:04:47.1]}
8... Bxf3 {[%clk 0:04:51]} 9. Bxf3 {[%clk 0:04:45.3]} 9... O-O {[%clk
0:04:50.9]} 10. O-O {[%clk 0:04:43.5]} 10... Nc6 {[%clk 0:04:48.8]} 11. a3
{[%clk 0:04:42.6]} 11... Rc8 {[%clk 0:04:35.3]} 12. Re1 {[%clk 0:04:41.6]} 12...
Na5 {[%clk 0:04:34.2]} 13. Bd2 {[%clk 0:04:37.3]} 13... Nc4 {[%clk 0:04:32.3]}
14. Bc1 {[%clk 0:04:36.2]} 14... a6 {[%clk 0:04:30.8]} 15. e4 {[%clk 0:04:27.3]}
15... dxe4 {[%clk 0:04:27.7]} 16. Nxe4 {[%clk 0:04:25.7]} 16... Nxe4 {[%clk
0:04:26.6]} 17. Bxe4 {[%clk 0:04:24.7]} 17... Qb6 {[%clk 0:04:22.9]} 18. b3
{[%clk 0:04:18.2]} 18... Nd6 {[%clk 0:04:19.6]} 19. Bd3 {[%clk 0:04:10]} 19...
Rfd8 {[%clk 0:04:18.3]} 20. Qh5 {[%clk 0:03:59.5]} 20... g6 {[%clk 0:04:16]} 21.
Qe5 {[%clk 0:03:52.7]} 21... Bf8 {[%clk 0:04:11.3]} 22. Bg5 {[%clk 0:03:48.5]}
22... Bg7 {[%clk 0:04:08.8]} 23. Qf4 {[%clk 0:03:40]} 23... Qxd4 {[%clk
0:04:02.7]} 24. Qxd4 {[%clk 0:03:34.5]} 24... Bxd4 {[%clk 0:04:02.6]} 25. Rad1
{[%clk 0:03:25.5]} 25... Re8 {[%clk 0:04:01]} 26. Be2 {[%clk 0:03:16.1]} 26...
Bc3 {[%clk 0:03:58.7]} 27. Rf1 {[%clk 0:03:13.7]} 27... Ne4 {[%clk 0:03:56.8]}
28. Be3 {[%clk 0:03:09.2]} 28... Red8 {[%clk 0:03:53.7]} 29. Rb1 {[%clk
0:03:04.4]} 29... Nd2 {[%clk 0:03:51.4]} 30. Bxd2 {[%clk 0:03:03]} 30... Rxd2
{[%clk 0:03:51]} 31. Bf3 {[%clk 0:03:02.1]} 31... b5 {[%clk 0:03:50.4]} 32. Bb7
{[%clk 0:02:59.8]} 32... Rc5 {[%clk 0:03:44.5]} 33. Bxa6 {[%clk 0:02:58.6]}
33... Bd4 {[%clk 0:03:41.3]} 34. Bb7 {[%clk 0:02:56.5]} 34... Rcc2 {[%clk
0:03:36.1]} 35. a4 {[%clk 0:02:49.9]} 35... bxa4 {[%clk 0:03:33.3]} 36. bxa4
{[%clk 0:02:48.7]} 36... Bxf2+ {[%clk 0:03:32.1]} 37. Kh1 {[%clk 0:02:46.8]}
37... Bd4 {[%clk 0:03:30.9]} 38. a5 {[%clk 0:02:44.5]} 38... Kg7 {[%clk
0:03:30.1]} 39. a6 {[%clk 0:02:43.3]} 39... Ra2 {[%clk 0:03:28.9]} 40. Rbd1
{[%clk 0:02:39]} 40... Rxd1 {[%clk 0:03:24.1]} 41. Rxd1 {[%clk 0:02:37]} 41...
e5 {[%clk 0:03:23.7]} 42. Rf1 {[%clk 0:02:30.8]} 42... f5 {[%clk 0:03:23]} 43.
Rc1 {[%clk 0:02:25.4]} 43... e4 {[%clk 0:03:17.1]} 44. Rc7+ {[%clk 0:02:23.4]}
44... Kh6 {[%clk 0:03:16.4]} 45. Rc6 {[%clk 0:02:15.8]} 45... Kg5 {[%clk
0:03:10.3]} 46. Kh2 {[%clk 0:02:12.1]} 46... Be5+ {[%clk 0:03:06.4]} 47. Kg1
{[%clk 0:02:10.4]} 47... e3 {[%clk 0:03:00.2]} 48. Rc1 {[%clk 0:02:08.5]} 48...
Bg3 {[%clk 0:02:54.4]} 49. Kf1 {[%clk 0:01:59.4]} 49... e2+ {[%clk 0:02:51.1]}
0-1

[Event "Live Chess"]
[Site "Chess.com"]
[Date "2024.06.01"]
[Round "-"]
[White "Brooms1989"]
[Black "Mangoalo"]
[Result "0-1"]
[WhiteElo "1056"]
[BlackElo "1009"]
[TimeControl "300"]
[EndTime "10:11:27 PDT"]
[Termination "Mangoalo won by resignation"]

1. e4 {[%clk 0:04:56.5]} 1... f5 {[%clk 0:04:57.4]} 2. exf5 {[%clk 0:04:49.8]}
2... Nf6 {[%clk 0:04:56.8]} 3. d4 {[%clk 0:04:45.8]} 3... h6 {[%clk 0:04:51.6]}
4. Nf3 {[%clk 0:04:39.7]} 4... d5 {[%clk 0:04:49.3]} 5. Ne5 {[%clk 0:04:37.2]}
5... Nbd7 {[%clk 0:04:25.6]} 6. Ng6 {[%clk 0:04:29.5]} 6... Rg8 {[%clk 0:04:21]}
7. Be2 {[%clk 0:04:22.3]} 7... Nb6 {[%clk 0:04:15.8]} 8. O-O {[%clk 0:04:07.6]}
8... Bxf5 {[%clk 0:04:14.6]} 9. Bd3 {[%clk 0:04:03]} 9... Qd7 {[%clk 0:04:04.4]}
10. Ne5 {[%clk 0:03:28.1]} 10... Qe6 {[%clk 0:03:57.7]} 11. c3 {[%clk
0:03:16.1]} 11... O-O-O {[%clk 0:03:55.2]} 12. Bxf5 {[%clk 0:03:05.7]} 12...
Qxf5 {[%clk 0:03:53.3]} 13. Qa4 {[%clk 0:03:03.9]} 13... Nxa4 {[%clk 0:03:45.8]}
0-1

[Event "Live Chess"]
[Site "Chess.com"]
[Date "2024.06.01"]
[Round "-"]
[White "kylet1990"]
[Black "Trecregin"]
[Result "0-1"]
[WhiteElo "724"]
[BlackElo "1851"]
[TimeControl "300"]
[EndTime "10:11:32 PDT"]
[Termination "Trecregin won by checkmate"]

1. e4 {[%clk 0:04:56.1]} 1... Nf6 {[%clk 0:04:58.6]} 2. e5 {[%clk 0:04:53.6]}
2... Nd5 {[%clk 0:04:57]} 3. Bc4 {[%clk 0:04:51.2]} 3... Nb6 {[%clk 0:04:55.8]}
4. Bb3 {[%clk 0:04:46.8]} 4... g6 {[%clk 0:04:54.9]} 5. d4 {[%clk 0:04:43.7]}
5... Bg7 {[%clk 0:04:53.6]} 6. Nf3 {[%clk 0:04:40.5]} 6... O-O {[%clk
0:04:52.3]} 7. O-O {[%clk 0:04:34.1]} 7... d6 {[%clk 0:04:50.9]} 8. Nc3 {[%clk
0:04:25.9]} 8... Nc6 {[%clk 0:04:47.6]} 9. Bf4 {[%clk 0:04:19.7]} 9... Bg4
{[%clk 0:04:45.5]} 10. h3 {[%clk 0:04:17.5]} 10... Bxf3 {[%clk 0:04:43.4]} 11.
Qxf3 {[%clk 0:04:15.2]} 11... Nxd4 {[%clk 0:04:42.1]} 12. Qd3 {[%clk 0:04:10.5]}
12... Nxb3 {[%clk 0:04:40.9]} 13. axb3 {[%clk 0:04:08.6]} 13... dxe5 {[%clk
0:04:38.5]} 14. Bg5 {[%clk 0:03:56.9]} 14... Qxd3 {[%clk 0:04:36.1]} 15. cxd3
{[%clk 0:03:55]} 15... Bf6 {[%clk 0:04:35.3]} 16. Bxf6 {[%clk 0:03:50.3]} 16...
exf6 {[%clk 0:04:34.1]} 17. Ne4 {[%clk 0:03:46.2]} 17... Kg7 {[%clk 0:04:28.3]}
18. Rac1 {[%clk 0:03:40.9]} 18... c6 {[%clk 0:04:25]} 19. f4 {[%clk 0:03:35.8]}
19... Rfd8 {[%clk 0:04:19.6]} 20. fxe5 {[%clk 0:03:27.9]} 20... fxe5 {[%clk
0:04:17]} 21. Rcd1 {[%clk 0:03:19.4]} 21... Rd5 {[%clk 0:04:15.1]} 22. Ng5
{[%clk 0:03:12.9]} 22... f5 {[%clk 0:04:09.5]} 23. h4 {[%clk 0:03:05.8]} 23...
Kf6 {[%clk 0:04:02.9]} 24. Nxh7+ {[%clk 0:03:00.4]} 24... Ke6 {[%clk 0:03:57.6]}
25. Ng5+ {[%clk 0:02:55.8]} 25... Kd6 {[%clk 0:03:56.2]} 26. Kh2 {[%clk
0:02:47.8]} 26... Kc5 {[%clk 0:03:50]} 27. Ne6+ {[%clk 0:02:37.3]} 27... Kb4
{[%clk 0:03:48.4]} 28. Ng5 {[%clk 0:02:27.4]} 28... Kxb3 {[%clk 0:03:44.3]} 29.
Rd2 {[%clk 0:02:22.2]} 29... Rh8 {[%clk 0:03:41.9]} 30. Kh3 {[%clk 0:02:17.6]}
30... Nd7 {[%clk 0:03:32.4]} 31. Rf3 {[%clk 0:02:13.6]} 31... Kb4 {[%clk
0:03:28.8]} 32. Ne6 {[%clk 0:02:03.5]} 32... Nf6 {[%clk 0:03:18.4]} 33. Nc7
{[%clk 0:01:58.5]} 33... Rd4 {[%clk 0:03:12.9]} 34. Ne6 {[%clk 0:01:51.8]} 34...
Rdxh4+ {[%clk 0:03:08]} 35. Kg3 {[%clk 0:01:45.3]} 35... Rg4+ {[%clk 0:03:04.9]}
36. Kf2 {[%clk 0:01:41.8]} 36... Rh2 {[%clk 0:03:03.9]} 37. Ke3 {[%clk
0:01:37.1]} 37... Rgxg2 {[%clk 0:03:00.6]} 38. Rxg2 {[%clk 0:01:33.8]} 38...
Rxg2 {[%clk 0:02:59.6]} 39. Nc7 {[%clk 0:01:25.6]} 39... Ng4# {[%clk 0:02:56.9]}
0-1